bitfinex/quotes_BTCUSD_20251027
["timestamp","ask_amount","ask_price","bid_price","bid_amount"]
[1761548623551,21.47161705,116000.0,115990.0,1.82173294]
[1761548623758,21.47161705,116000.0,115990.0,1.51976822]
[1761548623976,21.47161705,116000.0,115990.0,1.48358594]
[1761548624385,21.47161705,116000.0,115990.0,1.51976822]
[1761548625817,21.47165705,116000.0,115990.0,1.53576864]
[1761548626640,21.47165705,116000.0,115990.0,1.59723807]
[1761548627472,21.47165705,116000.0,115990.0,1.38136864]
[1761548627685,21.47165705,116000.0,115990.0,1.03227735]
[1761548627898,21.47165705,116000.0,115990.0,1.0693687]
[1761548628112,21.47165705,116000.0,115990.0,1.22579693]
[1761548628315,21.47165705,116000.0,115990.0,1.56579693]
[1761548628679,21.64407084,116000.0,115990.0,1.05336828]
[1761548628879,21.64407084,116000.0,115990.0,0.57232368]
[1761548629094,21.64407084,116000.0,115990.0,1.39336828]
[1761548629488,21.64407084,116000.0,115990.0,1.147666]
[1761548629704,21.64407084,116000.0,115990.0,1.302066]
[1761548630542,21.64407084,116000.0,115990.0,1.25603729]
[1761548630722,21.64407084,116000.0,115990.0,0.77499269]
[1761548631278,21.64407084,116000.0,115990.0,0.43499269]
[1761548631606,21.64407084,116000.0,115990.0,0.962066]
[1761548632022,21.64407084,116000.0,115990.0,0.91603729]
[1761548632574,21.64407084,116000.0,115990.0,0.43499269]
[1761548632780,21.64407084,116000.0,115990.0,0.91603729]
[1761548633339,21.64407084,116000.0,115990.0,0.76163729]
[1761548633518,21.64407084,116000.0,115990.0,0.962066]
[1761548633867,21.73388985,116000.0,115990.0,0.962066]
[1761548634075,21.64407084,116000.0,115990.0,0.962066]
[1761548635229,21.64407084,116000.0,115990.0,0.23680239]
[1761548635403,21.64407084,116000.0,115990.0,0.34517368]
[1761548635622,0.17242865,115990.0,115980.0,0.38602871]
[1761548635821,0.17242865,115990.0,115980.0,0.8210214]
[1761548636023,0.17263306,115990.0,115980.0,0.8210214]
[1761548636234,0.21906881,115990.0,115980.0,0.54042871]
[1761548636439,0.17263306,115990.0,115980.0,1.02147331]
[1761548640547,0.17263306,115990.0,115980.0,0.86707331]
[1761548640905,0.17363306,115990.0,115980.0,0.86707331]
[1761548641116,0.17363306,115990.0,115980.0,0.52707331]
[1761548641313,0.17244352,115980.0,115970.0,0.82621828]
[1761548641530,0.17244352,115980.0,115970.0,1.25603729]
[1761548642766,0.17344352,115980.0,115970.0,1.16621828]
[1761548643558,0.17344352,115980.0,115970.0,0.34]
[1761548643760,0.17245839,115970.0,115960.0,0.74029368]
[1761548643964,0.17245839,115970.0,115960.0,0.83011269]
[1761548644321,0.17245839,115970.0,115960.0,0.77499269]
[1761548644923,0.17545839,115970.0,115960.0,0.77499269]
[1761548645120,0.17545839,115970.0,115960.0,1.25603729]
[1761548647496,0.22568858,115970.0,115960.0,1.25603729]
[1761548647623,0.22568858,115970.0,115960.0,0.67181828]
[1761548647624,0.17545839,115970.0,115960.0,0.67181828]
[1761548648495,0.17545839,115970.0,115960.0,0.19077368]
[1761548648640,0.17545839,115970.0,115960.0,0.67181828]
[1761548649311,0.17247326,115960.0,115950.0,0.6354446]
[1761548649511,0.17247326,115960.0,115950.0,0.9754446]
[1761548651205,0.17249839,115970.0,115960.0,0.19077368]
[1761548651407,0.17249839,115970.0,115960.0,0.67181828]
[1761548653971,0.17549839,115970.0,115960.0,0.67181828]
[1761548656087,0.17549839,115970.0,115960.0,0.19077368]
[1761548656259,0.17549839,115970.0,115960.0,0.67181828]
[1761548656789,0.17549839,115970.0,115960.0,0.4810446]
[1761548657005,0.20953039,115970.0,115960.0,0.6354446]
[1761548657754,0.17247326,115960.0,115950.0,1.10163729]
[1761548657986,0.17247326,115960.0,115950.0,1.25603729]
[1761548659323,0.17247326,115960.0,115950.0,1.58268189]
[1761548659521,0.17247326,115960.0,115950.0,1.73708189]
[1761548663402,0.17253839,115970.0,115950.0,1.90957003]
[1761548663606,0.17253839,115970.0,115960.0,0.58811093]
[1761548663807,0.17253839,115970.0,115960.0,0.57086361]
[1761548665202,0.17553839,115970.0,115960.0,0.57086361]
[1761548666343,0.2111988,115970.0,115960.0,0.57086361]
[1761548666543,0.17553839,115970.0,115960.0,0.57086361]
[1761548670194,0.17553839,115970.0,115960.0,0.72522361]
[1761548671698,0.17557839,115970.0,115960.0,0.72522361]
[1761548672685,0.00312,115970.0,115960.0,3.33317305]
[1761548672890,0.0019,115970.0,115960.0,2.86756917]
[1761548673800,4e-05,115970.0,115960.0,2.86756917]
[1761548674403,4e-05,115970.0,115960.0,3.29689377]
[1761548674803,4e-05,115970.0,115960.0,3.29989377]
[1761548675008,0.00024441,115990.0,115980.0,2.93939948]
[1761548675249,0.00024441,115990.0,115980.0,4.90037917]
[1761548675450,1e-08,115990.0,115980.0,6.36351295]
[1761548675673,1e-08,115990.0,115980.0,4.92037915]
[1761548675880,1e-08,115990.0,115980.0,4.35810776]
[1761548676853,1e-08,115990.0,115980.0,4.34810777]
[1761548677241,1e-08,115990.0,115980.0,4.35810776]
[1761548677836,21.45896828,116000.0,115990.0,0.17242865]
[1761548678038,21.45896828,116000.0,115990.0,2.7787941]
[1761548678246,21.45917266,116000.0,115990.0,2.70824024]
[1761548678444,21.45917266,116000.0,115990.0,2.46149924]
[1761548678650,21.45917266,116000.0,115990.0,2.39554024]
[1761548678858,21.45917266,116000.0,115990.0,2.17683624]
[1761548679778,21.45917266,116000.0,115990.0,1.25547994]
[1761548679980,21.45917266,116000.0,115990.0,1.21477494]
[1761548680297,21.45917266,116000.0,115990.0,2.07078824]
[1761548681243,21.45917266,116000.0,115990.0,2.12148324]
[1761548681462,21.45917266,116000.0,115990.0,2.29651265]
[1761548681789,21.45917266,116000.0,115990.0,2.28042065]
[1761548681998,21.45917266,116000.0,115990.0,1.89174065]
[1761548682199,21.45917266,116000.0,115990.0,1.875625]
[1761548682403,21.45917266,116000.0,115990.0,2.36974492]
[1761548682769,21.45917266,116000.0,115990.0,2.37987392]
[1761548682974,21.45917266,116000.0,115990.0,1.69444324]
[1761548683172,21.45917266,116000.0,115990.0,2.24161892]
[1761548683330,21.45917266,116000.0,115990.0,2.44433892]
[1761548683874,21.45917266,116000.0,115990.0,2.23489892]
[1761548684082,21.45917266,116000.0,115990.0,2.44433892]
[1761548684456,21.45917266,116000.0,115990.0,2.49018721]
[1761548684674,21.45917266,116000.0,115990.0,2.28074721]
[1761548684845,21.45917266,116000.0,115990.0,1.86059856]
[1761548686081,21.45917266,116000.0,115990.0,1.65115856]
[1761548686427,21.45917266,116000.0,115990.0,1.86055856]
[1761548689499,21.45917266,116000.0,115990.0,2.28806521]
[1761548689858,21.45917266,116000.0,115990.0,2.07866521]
[1761548690039,21.45921266,116000.0,115990.0,2.28806521]
[1761548690939,21.45921266,116000.0,115990.0,0.53605191]
[1761548691115,21.45921266,116000.0,115990.0,1.17295856]
[1761548691302,21.45921266,116000.0,115990.0,1.51295856]
[1761548692083,21.45921266,116000.0,115990.0,1.03960362]
[1761548692280,21.45921266,116000.0,115990.0,1.46711027]
[1761548692728,21.45921266,116000.0,115990.0,1.25771027]
[1761548692929,21.45921266,116000.0,115990.0,1.46711027]
[1761548693650,21.45921266,116000.0,115990.0,1.51295856]
[1761548694191,21.45921266,116000.0,115990.0,1.41199027]
[1761548694437,21.45921266,116000.0,115990.0,1.46711027]
[1761548695432,21.45921266,116000.0,115990.0,1.43092799]
[1761548695637,21.45921266,116000.0,115990.0,1.46711027]
[1761548698501,21.45921266,116000.0,115990.0,1.51295856]
[1761548699013,21.45921266,116000.0,115990.0,1.47677628]
[1761548700397,21.45921266,116000.0,115990.0,1.51295856]
[1761548700990,21.45921266,116000.0,115990.0,1.46711027]
[1761548701543,21.45921266,116000.0,115990.0,1.25771027]
[1761548701736,21.45921266,116000.0,115990.0,1.46711027]
[1761548701942,21.45921266,116000.0,115990.0,1.25771027]
[1761548702160,21.63162645,116000.0,115990.0,1.46711027]
[1761548702368,21.63162645,116000.0,115990.0,0.33671269]
[1761548702570,21.63162645,116000.0,115990.0,0.91849934]
[1761548702937,21.63162645,116000.0,115990.0,0.001]
[1761548703346,21.63162645,116000.0,115990.0,0.49428]
[1761548703584,21.72144546,116000.0,115990.0,0.49428]
[1761548704605,0.17242865,115990.0,115980.0,0.19077368]
[1761548704862,0.17242865,115990.0,115980.0,0.77256033]
[1761548705057,0.17242865,115990.0,115980.0,0.34505368]
[1761548705261,0.17242865,115990.0,115980.0,0.68505368]
[1761548705509,0.26224766,115990.0,115980.0,0.53077368]
[1761548705711,0.26224766,115990.0,115980.0,0.34505368]
[1761548706581,0.17244352,115980.0,115970.0,0.38584829]
[1761548706788,0.17244352,115980.0,115970.0,0.96763494]
[1761548707282,0.17244352,115980.0,115970.0,0.92178665]
[1761548708498,0.17244352,115980.0,115970.0,0.34]
[1761548708698,0.21591264,115980.0,115970.0,0.49428]
[1761548709205,0.17244352,115980.0,115970.0,0.92178665]
[1761548709392,0.17242865,115990.0,115970.0,1.11257395]
[1761548709574,0.17244352,115980.0,115970.0,0.6850673]
[1761548710394,0.17244352,115980.0,115970.0,0.85752569]
[1761548710688,0.17244352,115980.0,115970.0,1.28503234]
[1761548711063,0.17242865,115990.0,115980.0,0.53077368]
[1761548711247,0.16711353,115990.0,115980.0,1.04809934]
[1761548711793,21.64024713,116000.0,115980.0,1.22054286]
[1761548711988,21.64024713,116000.0,115990.0,0.58178665]
[1761548712403,21.64024713,116000.0,115990.0,0.15428]
[1761548712632,21.64024713,116000.0,115990.0,0.58178665]
[1761548713491,21.45921266,116000.0,115990.0,1.18403431]
[1761548713676,21.45921266,116000.0,115990.0,1.2298826]
[1761548713873,21.45921266,116000.0,115990.0,0.80237595]
[1761548714093,21.45921266,116000.0,115990.0,1.18403431]
[1761548714283,21.46021266,116000.0,115990.0,1.2298826]
[1761548714494,21.46021266,116000.0,115990.0,1.18403431]
[1761548714849,21.45921266,116000.0,115990.0,1.18403431]
[1761548715058,21.46021266,116000.0,115990.0,1.18403431]
[1761548716252,21.46021266,116000.0,115990.0,1.2298826]
[1761548718171,21.46025266,116000.0,115990.0,1.2298826]
[1761548718931,21.21025266,116000.0,115990.0,1.18403431]
[1761548719989,21.21025266,116000.0,115990.0,1.02975431]
[1761548720190,21.21025266,116000.0,115990.0,1.23911431]
[1761548720631,21.21025266,116000.0,115990.0,1.02975431]
[1761548720819,21.21025266,116000.0,115990.0,1.23911431]
[1761548721360,21.21025266,116000.0,115990.0,1.02975431]
[1761548721560,21.21025266,116000.0,115990.0,1.23911431]
[1761548724362,21.21025266,116000.0,115990.0,1.74865153]
[1761548726233,21.20925266,116000.0,115990.0,1.74865153]
[1761548726436,21.20925266,116000.0,115990.0,1.95800624]
[1761548726660,21.20925266,116000.0,115990.0,1.89209965]
[1761548727438,21.20925266,116000.0,115990.0,1.68273965]
[1761548727619,21.20925266,116000.0,115990.0,1.51215043]
[1761548727818,21.20925266,116000.0,115990.0,1.89353692]
[1761548729032,21.20925266,116000.0,115990.0,1.95473733]
[1761548734193,21.20925266,116000.0,115990.0,1.91855505]
[1761548734378,21.20925266,116000.0,115990.0,1.95473733]
[1761548736236,21.20925266,116000.0,115990.0,1.95499265]
[1761548736979,21.20925266,116000.0,115990.0,2.06757365]
[1761548737183,21.20925266,116000.0,115990.0,2.00611792]
[1761548737383,21.20925266,116000.0,115990.0,2.04302992]
[1761548737804,21.20925266,116000.0,115990.0,2.15005594]
[1761548739523,21.20925266,116000.0,115990.0,2.22744345]
[1761548740164,21.20925266,116000.0,115990.0,2.90778311]
[1761548740534,21.20925266,116000.0,115990.0,2.45261242]
[1761548742022,21.20925266,116000.0,115990.0,2.45361242]
[1761548742636,21.20925266,116000.0,115990.0,2.24429242]
[1761548742843,21.20925266,116000.0,115990.0,2.55801445]
[1761548744011,21.20925266,116000.0,115990.0,1.56166851]
[1761548744220,21.20925266,116000.0,115990.0,1.484281]
[1761548744575,21.20925266,116000.0,115990.0,1.46534328]
[1761548744781,21.20925266,116000.0,115990.0,1.52046328]
[1761548744981,21.20925266,116000.0,115990.0,1.5801571]
[1761548746840,21.20925266,116000.0,115990.0,2.05193676]
[1761548747138,21.20925266,116000.0,115990.0,2.26118033]
[1761548747291,21.20925266,116000.0,115990.0,2.19968294]
[1761548747493,21.20925266,116000.0,115990.0,1.99968294]
[1761548747699,21.20925266,116000.0,115990.0,1.51866328]
[1761548748612,21.20925266,116000.0,115990.0,1.58016777]
[1761548748842,21.20925266,116000.0,115990.0,2.06118743]
[1761548749047,21.18120378,116000.0,115990.0,3.20139709]
[1761548749225,20.20384498,116000.0,115990.0,3.5430718]
[1761548749432,20.20384498,116000.0,115990.0,3.56416926]
[1761548749633,20.20384498,116000.0,115990.0,2.71784602]
[1761548749836,20.20384498,116000.0,115990.0,2.88196601]
[1761548751189,20.20384498,116000.0,115990.0,2.50044601]
[1761548751539,20.20384498,116000.0,115990.0,3.36198567]
[1761548751762,20.20384498,116000.0,115990.0,3.37498567]
[1761548751925,20.20384498,116000.0,115990.0,3.36298567]
[1761548752126,20.20384498,116000.0,115990.0,3.36198567]
[1761548752329,20.20384498,116000.0,115990.0,3.37098567]
[1761548752547,20.20384498,116000.0,115990.0,3.37198567]
[1761548754114,20.20384498,116000.0,115990.0,2.82920602]
[1761548754310,20.20384498,116000.0,115990.0,2.97680602]
[1761548755178,20.20384498,116000.0,115990.0,2.96680602]
[1761548755392,20.20384498,116000.0,115990.0,2.97380602]
[1761548755616,20.20384498,116000.0,115990.0,2.82620602]
[1761548755910,20.20384498,116000.0,115990.0,2.82616602]
[1761548756254,19.20155882,116000.0,115990.0,3.44962568]
[1761548756508,15.24863545,116000.0,115990.0,5.46678268]
[1761548756708,10.86557342,116000.0,115990.0,5.38696366]
[1761548756938,7.25755556,116000.0,115990.0,5.51435117]
[1761548757144,2.36982517,116000.0,115990.0,5.51435117]
[1761548757352,0.0002,116040.0,115990.0,5.51435117]
[1761548757353,0.16269029,116140.0,116040.0,0.58312802]
[1761548757561,0.227147,116130.0,116040.0,4.03157226]
[1761548757769,0.21852517,116130.0,116060.0,1.60018621]
[1761548757978,0.21852517,116130.0,116060.0,1.60614353]
[1761548758388,0.03769017,116130.0,116060.0,2.25768486]
[1761548758586,0.03769017,116130.0,116060.0,2.2761956]
[1761548758808,0.03769017,116130.0,116070.0,0.17230981]
[1761548758999,1e-08,116110.0,116100.0,0.56844754]
[1761548759148,1e-08,116110.0,116100.0,1.32512947]
[1761548759359,0.03769017,116130.0,116100.0,1.32512947]
[1761548759360,1e-08,116120.0,116110.0,2.00315363]
[1761548759567,0.03769017,116130.0,116120.0,0.70284187]
[1761548759766,0.00988791,116130.0,116120.0,1.80242114]
[1761548760321,0.00822368,116150.0,116140.0,0.91297962]
[1761548760530,0.00822368,116150.0,116140.0,1.72022902]
[1761548760954,0.00822368,116150.0,116140.0,1.06043398]
[1761548761181,0.00822368,116150.0,116140.0,1.5151956]
[1761548761420,0.00822368,116150.0,116140.0,1.48475353]
[1761548761815,0.00822368,116150.0,116140.0,1.4349019]
[1761548762026,0.18041481,116150.0,116140.0,0.33273228]
[1761548762252,0.18041481,116150.0,116140.0,0.29655]
[1761548762461,0.18041481,116150.0,116140.0,0.20773099]
[1761548763135,0.00822368,116150.0,116140.0,0.75231162]
[1761548763333,0.00018567,116160.0,116150.0,0.8927974]
[1761548763536,0.00018567,116160.0,116150.0,1.90809696]
[1761548763746,0.00018567,116160.0,116150.0,1.45333534]
[1761548764381,0.2123107,116200.0,116190.0,0.72213184]
[1761548764592,2.96782519,116220.0,116210.0,0.75077366]
[1761548764796,2.96782519,116220.0,116210.0,2.93883319]
[1761548764995,2.96782519,116220.0,116210.0,3.4197771]
[1761548765240,2.96782519,116220.0,116210.0,2.99469784]
[1761548765419,2.96782519,116220.0,116210.0,3.56507142]
[1761548765841,2.96782519,116220.0,116210.0,3.53538906]
[1761548766045,2.96782519,116220.0,116210.0,3.56496686]
[1761548766245,2.96782519,116220.0,116210.0,3.53538906]
[1761548766451,2.96782519,116220.0,116210.0,3.37332306]
[1761548766655,2.96512819,116220.0,116210.0,2.08348407]
[1761548766854,2.96512819,116220.0,116210.0,1.52216785]
[1761548766995,2.96512819,116220.0,116210.0,1.45566785]
[1761548767198,2.96512819,116220.0,116210.0,1.47952955]
[1761548767618,2.96512819,116220.0,116210.0,1.47852955]
[1761548767843,2.96512819,116220.0,116210.0,1.02376793]
[1761548768051,3.29445561,116220.0,116210.0,1.29731162]
[1761548768256,3.12236819,116220.0,116210.0,1.164161]
[1761548768455,3.12236819,116220.0,116210.0,1.20034328]
[1761548768668,3.12236819,116220.0,116210.0,0.98672628]
[1761548769119,2.94112819,116220.0,116210.0,1.62359011]
[1761548769346,2.91534171,116220.0,116210.0,1.63718168]
[1761548769587,2.88955523,116220.0,116210.0,1.6335901]
[1761548770478,2.88506711,116220.0,116210.0,1.6571679]
[1761548770694,2.88506711,116220.0,116210.0,1.6591679]
[1761548770904,2.8864941,116220.0,116210.0,1.6445901]
[1761548771117,2.8864941,116220.0,116210.0,1.6425901]
[1761548771339,2.8864941,116220.0,116210.0,1.6721679]
[1761548771573,2.8864941,116220.0,116210.0,1.6731679]
[1761548771774,2.8864941,116220.0,116210.0,1.6435901]
[1761548771968,2.8864941,116220.0,116210.0,1.6731679]
[1761548772477,2.34207614,116220.0,116210.0,1.70227823]
[1761548772674,2.18690349,116220.0,116210.0,1.70227823]
[1761548772923,2.16112343,116220.0,116210.0,1.69868665]
[1761548773308,0.03891579,116270.0,116210.0,1.69868665]
[1761548773309,0.00617605,116420.0,116300.0,0.18650552]
[1761548773546,0.04483258,116440.0,116300.0,0.18650552]
[1761548773547,0.18045888,116370.0,116360.0,0.65889015]
[1761548773752,0.83647951,116370.0,116360.0,0.65889015]
[1761548773962,0.17188037,116360.0,116350.0,0.65023538]
[1761548774112,0.73369386,116360.0,116350.0,0.65023538]
[1761548774322,0.716461,116360.0,116350.0,0.65023538]
[1761548774520,0.716461,116360.0,116300.0,0.39430228]
[1761548774521,0.17192184,116340.0,116320.0,0.19059736]
[1761548774726,0.73373818,116330.0,116320.0,0.19059736]
[1761548774929,0.4749437,116330.0,116320.0,0.19059736]
[1761548775130,0.71650532,116330.0,116320.0,0.19059736]
[1761548775362,0.62671588,116310.0,116290.0,0.34]
[1761548775540,0.17198097,116300.0,116290.0,0.44531659]
[1761548776327,0.62674259,116300.0,116290.0,0.01549758]
[1761548776525,0.78478259,116300.0,116290.0,0.01549758]
[1761548776728,0.32759367,116300.0,116290.0,0.01549758]
[1761548777072,0.62431529,116300.0,116290.0,0.01549758]
[1761548777275,1.32689592,116300.0,116290.0,0.01549758]
[1761548777421,0.8721343,116300.0,116290.0,0.01549758]
[1761548778024,0.8721343,116300.0,116230.0,0.2]
[1761548778025,0.17206504,116250.0,116230.0,0.2]
[1761548778216,0.17206504,116250.0,116240.0,0.10702479]
[1761548778418,0.17206504,116250.0,116240.0,0.08981901]
[1761548779200,0.17205781,116240.0,116210.0,0.2]
[1761548779330,0.17207719,116230.0,116220.0,0.43037075]
[1761548779538,0.17207719,116230.0,116220.0,0.08981901]
[1761548779959,0.17107719,116230.0,116220.0,0.08981901]
[1761548780538,0.17968082,116230.0,116200.0,0.22283563]
[1761548780842,0.17209673,116220.0,116210.0,0.24805901]
[1761548781313,0.17209673,116220.0,116210.0,0.08981901]
[1761548781512,0.17209673,116220.0,116210.0,0.10702923]
[1761548782284,0.17209673,116220.0,116210.0,0.42981901]
[1761548782482,0.17210222,116210.0,116190.0,0.18103563]
[1761548782684,0.17210222,116210.0,116200.0,0.08981901]
[1761548783378,0.17210222,116210.0,116200.0,0.45265464]
[1761548784376,0.18933508,116210.0,116200.0,0.02283563]
[1761548785108,0.17210222,116210.0,116200.0,0.02283563]
[1761548785310,0.17210222,116210.0,116200.0,0.03044207]
[1761548785311,0.18933508,116210.0,116200.0,0.03044207]
[1761548786467,0.34741508,116210.0,116200.0,0.04566311]
[1761548786715,0.33006222,116210.0,116200.0,0.04566311]
[1761548786932,0.80701861,116210.0,116200.0,0.04566311]
[1761548787155,0.80801861,116210.0,116200.0,0.04566311]
[1761548787320,0.80801861,116210.0,116200.0,0.06089128]
[1761548787733,0.33106222,116210.0,116200.0,0.06089128]
[1761548787951,0.80801861,116210.0,116200.0,0.06089128]
[1761548788177,0.33106222,116210.0,116200.0,0.06089128]
[1761548788735,0.89783762,116210.0,116200.0,0.06089128]
[1761548788944,0.17211703,116200.0,116190.0,0.06089128]
[1761548789149,0.75612529,116200.0,116190.0,0.06089128]
[1761548789462,0.17214666,116180.0,116170.0,0.10687843]
[1761548789616,0.17216148,116170.0,116160.0,0.07612847]
[1761548789821,0.18939434,116170.0,116160.0,0.07612847]
[1761548790013,0.34735434,116170.0,116160.0,0.07612847]
[1761548790213,0.33008148,116170.0,116160.0,0.07612847]
[1761548790492,0.1721763,116160.0,116150.0,0.1830069]
[1761548790930,0.34732916,116160.0,116150.0,0.07612847]
[1761548791091,0.3300963,116160.0,116150.0,0.07612847]
[1761548791291,0.3300963,116160.0,116150.0,0.41612847]
[1761548791807,0.3300963,116160.0,116150.0,0.07612847]
[1761548792228,0.1721763,116160.0,116150.0,0.07612847]
[1761548792409,0.34728916,116160.0,116150.0,0.07612847]
[1761548792608,0.3300563,116160.0,116150.0,0.07612847]
[1761548793215,0.21351703,116160.0,116150.0,0.07612847]
[1761548794276,0.62241243,116160.0,116150.0,0.07612847]
[1761548794421,0.17219113,116150.0,116140.0,0.41619847]
[1761548794629,0.18942399,116150.0,116140.0,0.41619847]
[1761548795668,0.75619939,116150.0,116120.0,0.10687843]
[1761548795917,0.51225045,116110.0,116100.0,0.15316546]
[1761548796052,0.60206946,116110.0,116100.0,0.15316546]
[1761548796258,0.60206946,116110.0,116080.0,0.20487041]
[1761548796259,0.34,116090.0,116080.0,0.00361828]
[1761548796488,1.14723651,116090.0,116080.0,0.00361828]
[1761548797142,1.14723651,116090.0,116030.0,0.30961867]
[1761548797143,0.00861549,116070.0,116030.0,0.30961867]
[1761548797311,0.00861549,116070.0,116020.0,0.20125213]
[1761548797312,0.51236921,116030.0,116020.0,0.20125213]
[1761548797487,0.34,116030.0,116010.0,0.47695639]
[1761548797848,0.51236975,116030.0,116020.0,0.1584]
[1761548798185,0.51236975,116030.0,116010.0,0.04400836]
[1761548798807,0.17238407,116020.0,115990.0,0.2]
[1761548799145,0.18098821,116030.0,116000.0,0.10706038]
[1761548799389,0.17238415,116020.0,116000.0,0.08981901]
[1761548799596,0.18098821,116030.0,116000.0,0.08981901]
[1761548799975,0.17236975,116030.0,116000.0,0.27947406]
[1761548800180,0.18096557,116060.0,116020.0,0.64392323]
[1761548800384,0.17233991,116050.0,116030.0,0.01723692]
[1761548800584,0.17235436,116040.0,116020.0,0.08981901]
[1761548800784,0.18095688,116050.0,116020.0,0.08981901]
[1761548800785,0.18095688,116050.0,116020.0,0.10705741]
[1761548800987,0.17235436,116040.0,116030.0,0.34]
[1761548801396,0.17236921,116030.0,116010.0,0.34]
[1761548801597,0.17236921,116030.0,116010.0,0.42981901]
[1761548802128,0.9061267,116020.0,115980.0,7e-05]
[1761548802432,0.17241379,116000.0,115980.0,7e-05]
[1761548802656,0.17241379,116000.0,115980.0,0.01731435]
[1761548802657,0.17242865,115990.0,115980.0,0.01731435]
[1761548802859,0.17241379,116000.0,115980.0,0.35731435]
[1761548803066,0.17241379,116000.0,115980.0,0.00211356]
[1761548803270,0.00861994,116010.0,115980.0,0.75105659]
[1761548803420,0.17241417,116000.0,115980.0,7e-05]
[1761548803629,0.17242865,115990.0,115980.0,7e-05]
[1761548804175,0.18966151,115990.0,115980.0,7e-05]
[1761548805238,0.34846151,115990.0,115980.0,7e-05]
[1761548805527,1.06497089,115990.0,115980.0,7e-05]
[1761548806540,0.42096766,115990.0,115980.0,7e-05]
[1761548807086,0.8714174,116000.0,115980.0,7e-05]
[1761548807087,0.33109417,116000.0,115980.0,7e-05]
[1761548807519,0.17241417,116000.0,115980.0,7e-05]
[1761548807733,0.17242865,115990.0,115980.0,7e-05]
[1761548808157,0.01723286,115990.0,115980.0,7e-05]
[1761548808593,0.19166151,115990.0,115980.0,7e-05]
[1761548809006,0.01723286,115990.0,115980.0,0.00211356]
[1761548809213,0.18966151,115990.0,115980.0,0.00211356]
[1761548809465,0.19066151,115990.0,115980.0,0.00211356]
[1761548809897,0.01823286,115990.0,115980.0,0.16071356]
[1761548810116,0.17342865,115990.0,115980.0,0.16071356]
[1761548810575,0.19066151,115990.0,115980.0,0.00211356]
[1761548812291,0.31678809,115990.0,115980.0,0.00211356]
[1761548812502,0.42172766,115990.0,115980.0,0.00211356]
[1761548812950,1.06565089,115990.0,115980.0,0.00211356]
[1761548813851,1.40565089,115990.0,115980.0,0.00211356]
[1761548814067,1.41565088,115990.0,115980.0,0.00211356]
[1761548814291,1.50546989,115990.0,115980.0,0.00211356]
[1761548814504,0.86154666,115990.0,115980.0,0.00211356]
[1761548814719,1.54165217,115990.0,115980.0,0.00211356]
[1761548814930,0.89772894,115990.0,115980.0,0.00211356]
[1761548815141,1.54165217,115990.0,115980.0,0.00211356]
[1761548815568,1.54065217,115990.0,115980.0,0.00211356]
[1761548815776,0.17248829,115950.0,115930.0,0.46728]
[1761548815990,0.18972115,115950.0,115930.0,0.46728]
[1761548816414,0.01723286,115950.0,115930.0,0.5125167]
[1761548816653,0.01723286,115950.0,115930.0,0.7259167]
[1761548816869,0.18972158,115950.0,115930.0,0.7259167]
[1761548817081,0.17248872,115950.0,115930.0,0.7259167]
[1761548817331,0.18110726,115960.0,115930.0,0.7259167]
[1761548817535,0.18108709,115980.0,115950.0,0.81641012]
[1761548817708,0.18969277,115970.0,115960.0,0.15824]
[1761548817917,0.18305008,115990.0,115960.0,0.87453055]
[1761548818260,0.18967775,115980.0,115960.0,0.21336]
[1761548818608,0.17245846,115970.0,115950.0,0.34]
[1761548821515,0.17247326,115960.0,115950.0,0.4982]
[1761548821680,0.17245944,115970.0,115950.0,0.4982]
[1761548821875,0.17245944,115970.0,115930.0,0.64392323]
[1761548821876,0.18109692,115960.0,115930.0,0.64392323]
[1761548822122,0.19834592,115950.0,115920.0,9.17889947]
[1761548822272,0.17251789,115930.0,115920.0,9.23401947]
[1761548822482,0.18975075,115930.0,115920.0,9.23401947]
[1761548822684,0.27956976,115930.0,115920.0,9.17889947]
[1761548822885,0.2623369,115930.0,115920.0,9.17889947]
[1761548823290,0.4204569,115930.0,115920.0,9.17889947]
[1761548823593,1.06438013,115930.0,115920.0,9.17889947]
[1761548823797,0.4204569,115930.0,115920.0,9.17889947]
[1761548823996,1.06438013,115930.0,115920.0,9.17889947]
[1761548824199,1.15354247,115930.0,115920.0,9.17889947]
[1761548825292,1.06538013,115930.0,115920.0,9.17889947]
[1761548825498,0.17351789,115930.0,115920.0,9.17889947]
[1761548826089,0.19075075,115930.0,115920.0,9.17889947]
[1761548826299,0.28056976,115930.0,115920.0,9.17889947]
[1761548826500,0.2633369,115930.0,115920.0,9.17889947]
[1761548828670,0.001,115930.0,115920.0,10.0359427]
[1761548828875,0.17351789,115930.0,115920.0,9.17889947]
[1761548829081,0.2633369,115930.0,115920.0,9.18012677]
[1761548829504,0.4214969,115930.0,115920.0,9.18012677]
[1761548829857,1.06542013,115930.0,115920.0,9.18012677]
[1761548830055,0.4204969,115930.0,115920.0,9.18012677]
[1761548830262,1.06442013,115930.0,115920.0,9.18012677]
[1761548830463,0.4204969,115930.0,115920.0,9.18012677]
[1761548831049,0.51031591,115930.0,115920.0,9.17076464]
[1761548831251,1.1106024,115930.0,115920.0,9.13157407]
[1761548832154,1.4506024,115930.0,115920.0,9.10974641]
[1761548832374,1.46160239,115930.0,115920.0,8.82660628]
[1761548832774,0.81667916,115930.0,115920.0,8.82660628]
[1761548832934,1.46060239,115930.0,115920.0,8.82660628]
[1761548833137,1.46260239,115930.0,115920.0,8.82660628]
[1761548833348,1.5524214,115930.0,115920.0,8.82660628]
[1761548833758,1.5524214,115930.0,115920.0,8.62285089]
[1761548834116,1.57357358,115930.0,115920.0,8.15723662]
[1761548834246,1.5524214,115930.0,115920.0,8.15723662]
[1761548835690,1.5524214,115930.0,115920.0,8.1010094]
[1761548835947,1.5524214,115930.0,115920.0,7.48058435]
[1761548836123,1.57507358,115930.0,115920.0,6.77038676]
[1761548836560,0.2643369,115930.0,115920.0,6.77038676]
[1761548836712,0.4774969,115930.0,115920.0,6.77038676]
[1761548836924,1.12142013,115930.0,115920.0,6.77038676]
[1761548837123,0.4774969,115930.0,115920.0,6.77038676]
[1761548837729,0.4754969,115930.0,115920.0,6.77038676]
[1761548838127,0.4774969,115930.0,115920.0,6.77038676]
[1761548839195,1.33807914,115930.0,115920.0,6.77038676]
[1761548839404,0.8620359,115930.0,115920.0,6.77038676]
[1761548839600,0.9171959,115930.0,115920.0,6.77038676]
[1761548840039,0.2643369,115930.0,115920.0,6.77038676]
[1761548840237,0.09181901,115930.0,115920.0,6.77038676]
[1761548840484,0.002,115930.0,115920.0,6.77038676]
[1761548840605,0.002,115930.0,115920.0,6.92822676]
[1761548840801,0.002,115930.0,115920.0,7.74468277]
[1761548841034,0.002,115930.0,115920.0,6.92822676]
[1761548841237,0.002,115930.0,115920.0,6.77038676]
[1761548841476,0.18973595,115940.0,115920.0,6.92818676]
[1761548841654,0.001,115930.0,115920.0,6.92695946]
[1761548842079,0.17351789,115930.0,115920.0,6.76915946]
[1761548842282,0.17351789,115930.0,115920.0,6.92695946]
[1761548842549,0.18975075,115930.0,115920.0,6.92695946]
[1761548842751,0.17251789,115930.0,115920.0,6.92695946]